Cogmind - Beta 10.2 @@@ ROGUE MODE // 2021.03.20 @ 23:00:39 Player: Sen Result: Destroyed by G-47 Trooper with Particle Gun Performance ------------- Evolutions (0) 0 Regions Visited (1) 200 Robots Destroyed (8) 40 Value Destroyed (178) 178 Prototype IDs (0) 0 Alien Tech Used (0) 0 Bonus (0) 0 TOTAL SCORE: 418 Bonus ------- None Cogmind --------- Core Integrity 0/250 Matter 256/300 Energy 125/125 System Corruption 0% Temperature Cool (9) Movement Core (100) Ox1 Location -10/Materials Parts ------- > --- POWER (1) -------- Light Ion Engine > --- PROPULSION (2) --- (None) > --- UTILITY (2) ------ Sensor Array > --- WEAPON (2) ------- (None) > --- INVENTORY (4) ---- Light Ion Engine Peak State ------------ > --- POWER ------------ Light Ion Engine > --- PROPULSION ------- Aluminum Leg Aluminum Leg > --- UTILITY ---------- Sensor Array > --- WEAPON ----------- Assault Rifle Light Assault Rifle > --- INVENTORY -------- Light Ion Engine Light Ion Engine [Rating: 6] Favorites ----------- Power Light Ion Engine Engine Light Ion Engine Propulsion Aluminum Leg Leg Aluminum Leg Wheel Compact Wheel Utility Sensor Array Device Sensor Array Weapon Assault Rifle Ballistic Gun Assault Rifle Build | -11 -10 ------- Run | Scr Mat Slots Evolved . | . . Power . | . . Propulsion . | . . Utility . | . . Weapon . | . . Parts Attached 9 | 6 3 Power 3 | 1 2 Engine 3 | 1 2 Core . | . . Reactor . | . . Propulsion 3 | 3 . Treads . | . . Leg 2 | 2 . Wheel 1 | 1 . Hover . | . . Flight . | . . Utility 1 | . 1 Device 1 | . 1 Storage . | . . Processor . | . . Hackware . | . . Protection . | . . Artifact . | . . Weapon 2 | 2 . Energy Gun . | . . Energy Cannon . | . . Ballistic Gun 2 | 2 . Ballistic Cannon . | . . Launcher . | . . Special Weapon . | . . Impact Weapon . | . . Slashing Weapon . | . . Piercing Weapon . | . . Special Melee Weapon . | . . Unidentified Prototypes . | . . Parts Lost 3 | . 3 Power 1 | . 1 Propulsion . | . . Utility . | . . Weapon 2 | . 2 Highest Loss Streak 3 | . 3 Average Slot Usage (%) 72 | . 72 Engine 12 | . 12 Leg 28 | . 28 Device 5 | . 5 Ballistic Gun 24 | . 24 Naked Turns . | . . Heaviest Build 7 | 6 7 Greatest Support 20 | 20 20 Greatest Overweight (x) 1 | . 1 Average Overweight (x) . | . . Largest Inventory Capacity 4 | 4 4 Average Capacity 4 | 4 4 Most Carried 2 | 2 2 Average Carried 1 | . 1 Final Capacity 4 | 4 4 Final Carried 1 | 1 1 Class Distribution -------------------- 100% | Mutant Dominant Class ---------------- Mutant | -10/Materials Resources | -11 -10 ----------- Run | Scr Mat Matter Collected 333 | 209 124 Remotely . | . . Salvage Created 257 | . 257 Parts 19 | . 19 Haulers Intercepted . | . . Recyclers Shooed 2 | . 2 Parts Field Recycled . | . . Retrieved Matter . | . . Parts Self-Destructed . | . . Prevented . | . . Kills | -11 -10 ------- Run | Scr Mat Combat Hostiles Destroyed 6 | . 6 Guns 6 | . 6 Classes Destroyed 4 | . 4 Recycler 1 | . 1 Watcher 1 | . 1 Swarmer 2 | . 2 Grunt 4 | . 4 Best Kill Streak 5 | . 5 Combat Bots Only 3 | . 3 Max Kills in Single Turn 1 | . 1 Gunslinging . | . . Exploded . | . . Melee . | . . Uniques/NPCs Destroyed . | . . Combat | -11 -10 -------- Run | Scr Mat Damage Taken 604 | . 604 Core 256 | . 256 Absorbed by Shields . | . . Core Remaining (%) 100 | 100 . Volleys Fired 30 | . 30 Largest 2 | . 2 Hottest 40 | . 40 Shots Fired 50 | . 50 Gun 50 | . 50 Cannon . | . . Launcher . | . . Special . | . . Kinetic 50 | . 50 Thermal . | . . Explosive . | . . Electromagnetic . | . . Robot Hit Streak 8 | . 8 Robot Miss Streak 4 | . 4 Penetration Max . | . . Secondary Targets . | . . Shots Hit Robots 30 | . 30 Core Hits 16 | . 16 Critical Hits . | . . Critical Kills . | . . Critical Parts Destroyed . | . . Melee Attacks . | . . Impact . | . . Slashing . | . . Piercing . | . . Sneak Attacks . | . . Combat Hostiles . | . . Follow-up Attacks . | . . Damage Inflicted 361 | . 361 Guns 359 | . 359 Cannons . | . . Explosions . | . . Melee . | . . Ramming 2 | . 2 Kinetic 359 | . 359 Thermal . | . . Explosive . | . . Electromagnetic . | . . Impact . | . . Slashing . | . . Piercing . | . . Highest Corruption . | . . Average Corruption . | . . Corruption Purged . | . . Overload Shots . | . . Overflow Damage . | . . Projectiles . | . . Explosions . | . . Melee . | . . Knockbacks . | . . Impact . | . . Kinetic . | . . Secondary . | . . Self-Inflicted Damage . | . . Shots . | . . Rammed 2 | . 2 Targets Rammed 2 | . 2 Kicked . | . . Crushed . | . . Highest Temperature 22 | . 22 Average Temperature 9 | . 9 Received Heat Transfer 264 | . 264 Siege Activations . | . . Robots Corrupted . | . . Combat Hostiles . | . . Parts Fried . | . . Impact Corruptions . | . . Robots Melted . | . . Combat Hostiles . | . . Parts Melted . | . . Heat Transferred . | . . Parts Sabotaged . | . . Parts Stolen . | . . Parts Stripped . | . . Power Chain Reactions . | . . Missiles Intercepted . | . . Alert | -11 -10 ------- Run | Scr Mat Peak Influence 137 | . 137 Initial . | . . Average 43 | . 62 Maximum Alert Level . | . . Low Security (%) 100 | 100 100 Level 1 . | . . Level 2 . | . . Level 3 . | . . Level 4 . | . . Level 5 . | . . High Security . | . . Max Security . | . . Squads Dispatched . | . . Investigation . | . . Extermination . | . . Reinforcement . | . . Assault . | . . Garrison . | . . Intercept . | . . Construction Impeded . | . . Haulers Reinforced . | . . Stealth | -11 -10 --------- Run | Scr Mat Distress Signals . | . . Communications Jammed . | . . Distress Signals . | . . Times Spotted 10 | . 10 Peak Tracking Total 4 | . 4 Tactical Retreats . | . . Traps | -11 -10 ------- Run | Scr Mat Traps Triggered 1 | . 1 Indirectly . | . . Trap Hack Attempts . | . . Triggered . | . . Disarmed . | . . Reprogrammed . | . . Reused . | . . Traps Extracted . | . . Installed . | . . Triggered . | . . Machines | -11 -10 ---------- Run | Scr Mat Machines Disabled . | . . Max in Single Turn . | . . Machines Sabotaged . | . . Garrisons Compromised . | . . Overloaded Fab Kills . | . . Fab Network Shutdowns . | . . Hacking | -11 -10 --------- Run | Scr Mat Machines Accessed . | . . Terminals . | . . Fabricators . | . . Repair Stations . | . . Recycling Units . | . . Scanalyzers . | . . Garrison Access . | . . Total Hacks . | . . Successful . | . . Failed . | . . Catastrophic . | . . Database Lockouts . | . . Manual . | . . Terminals . | . . Fabricators . | . . Repair Stations . | . . Recycling Units . | . . Scanalyzers . | . . Garrison Access . | . . Terminal Hacks . | . . Fabricator Hacks . | . . Repair Station Hacks . | . . Recycling Unit Hacks . | . . Scanalyzer . | . . Garrison Access Hacks . | . . Unauthorized Hacks . | . . Terminals . | . . Fabricators . | . . Repair Stations . | . . Recycling Units . | . . Scanalyzers . | . . Garrison Access . | . . Data Cores Recovered . | . . Used . | . . Hacking Detections . | . . Full Trace Events . | . . Feedback Events . | . . Feedback Blocked . | . . Robot Schematics Acquired . | . . Robots Built . | . . Matter . | . . Time . | . . Total Robot Build Rating . | . . Part Schematics Acquired . | . . Parts Built . | . . Matter . | . . Time . | . . Total Part Build Rating . | . . Parts Repaired . | . . Time . | . . Parts Recycled . | . . Recycled Matter . | . . Retrieved Matter . | . . Retrieved Components . | . . Parts Scanalyzed . | . . Part Schematics Acquired . | . . Parts Damaged . | . . Bothacking | -11 -10 ------------ Run | Scr Mat Used RIF Installer . | . . Robots Hacked . | . . Non-combat . | . . Combat . | . . Robot Hacks Applied . | . . Relay Couplers Released . | . . Robots Rewired . | . . Allies Hacked . | . . Hacks Repelled . | . . Allies | -11 -10 -------- Run | Scr Mat Total Allies . | . . Largest Group . | . . Highest-Rated Group . | . . Highest-Rated Ally . | . . Total Orders . | . . Ally Attacks . | . . Total Damage . | . . Kills . | . . Allies Corrupted . | . . Allies Melted . | . . Intel | -11 -10 ------- Run | Scr Mat Robot Analysis Total . | . . Derelict Logs Recovered . | . . Drone Launches . | . . Drone Recoveries . | . . Exploration | -11 -10 ------------- Run | Scr Mat Turns Passed 198 | 59 139 Spaces Moved 88 | 42 46 Core 5 | 3 2 Treads . | . . Legs 80 | 36 44 Wheels 3 | 3 . Hover . | . . Flight . | . . Fastest Speed 50 | 50 100 Average Speed 116 | 113 119 Slowest Speed 120 | 120 120 Overloaded Moves . | . . Propulsion Burnouts . | . . Robots Hopped . | . . Cave-ins Triggered . | . . Exploration Rate (%) 8 | 3 14 Regions Visited 1 Branch Regions . Pre-discovered Areas . | . . Known Exits Taken . | . . Unknown Exits Taken 1 | 1 . Scrap Searched . | . . Spaces Dug . | . . Terrain Destroyed . | . . Melee . | . . Projectile . | . . AOE . | . . Terrain Rammed . | . . Walls Destroyed . | . . Machines Disabled . | . . Actions | -11 -10 --------- Run | Scr Mat Total 135 | 52 83 Wait 2 | . 2 Move 87 | 41 46 Hop . | . . Pick Up 2 | 2 . Fast Attach 7 | 6 1 Attach 1 | . 1 Detach 1 | 1 . Swap 1 | . 1 Drop 2 | 2 . Fire 30 | . 30 Melee . | . . Ram 2 | . 2 Kick . | . . Crush . | . . Escape Stasis . | . . Rewire . | . . Trap . | . . Miscellaneous . | . . Route ------- -11/Scrapyard -10/Materials History --------- Turn | Location | Event 11 | -11/Scrapyard | Discovered new exit (range 15) 60 | -11/Scrapyard | Entered Materials 173 | -10/Materials | Core integrity fell below 50% 197 | -10/Materials | Core integrity fell below 20% 199 | -10/Materials | Destroyed by G-47 Trooper with Particle Gun Last Messages --------------- 00167_ Lgt. Assault Rifle destroyed. 00167_ R-06 Scavenger collects Hover Unit. 00169_ G-34 Mercenary destroyed. 00170_ R-06 Scavenger collects Aluminum Leg. 00171_ Acquired 35 matter. 00173_ G-34 Mercenary destroyed. 00173_ R-06 Scavenger collects Ion Engine. 00175_ Lgt. Ion Engine destroyed. 00179_ Acquired 34 matter. 00180_ G-34 Mercenary destroyed. 00193_ Assault Rifle destroyed. 00194_ Triggered Blade Trap. 00194_ Massive razor-sharp blades shoot up from within the floor. 00194_ Aluminum Leg severed. 00195_ Slammed into G-47 Trooper. 00195_ Destabilizing: System interference. 00195_ Sensor Array temporarily disabled. 00196_ Slammed into G-47 Trooper. 00196_ Destabilizing: Core damaged (-10). 00197_ Acquired 45 matter. Map ----- +----------------------------------------------------+ | ??????????????????????????????????????????? | | ??????????????????????????????????????????? | | ??????????????????????????????????????????? | | ??????????????????????????????????????????? | | ??????????????????????????????????????????? | | ???????????#+?????????????????????????????? | | ???????????# ?????????????????????????????? | | ???????????# ?????????????????????????????? | | ???????????# ?????????????????????????????? | | ???????????# ###??????????????????????????? | | ???????????# #??????????????????????????? | | ???????????+ #??????????????????????????? | | ???????????# #??????????????????????????? | | ???????????# #??????????????????????????? | | ???????????# #??????????????????????????? | | ???????????# #??????????????????????????? | | ????######## ########???????????????????? | | ????# #???????????????????? | | ????# = !+ ??????????????????? | | ????# %= #???????????????????? | | ????# #########%! ###???????????????????? | | ????# #??######=t #??#####??????????????? | | ????# #?? #= ## ######?????????? | | ????# #? ! # g k ????????? | | ????# #? # g= u ????????? | | ????# # # @a! a t ????????? | | ????# # """ ##%### #####??????????? | | ????# + """ ##=#??######??????????????? | | ????# # """ ## #??????????????????????? | | ????# # ##*#??????????????????????? | | ????# #?########=#??????????????????????? | | ????# #? !! #?#r#??????????????????????? | | ????# # !! #?# #??????????????????????? | | ????# # !! #?#g#??????????????????????? | | ????# + #?? ??????????????????????? | | ????# # #?? #??????????????????????? | | ????# # #?? ???????????????????????? | | ????# #?######?? ???????????????????????? | | ????# #?????????+???????????????????????? | | ????# #?????????????????????????????????? | | ????# #?????????????????????????????????? | | ????# #?????????????????????????????????? | | ????# #?????????????????????????????????? | | ????# #?????????????????????????????????? | | ????# #?????????????????????????????????? | | ????#####?????????????????????????????????? | | ??????????????????????????????????????????? | | ??????????????????????????????????????????? | | ??????????????????????????????????????????? | | ??????????????????????????????????????????? | +----------------------------------------------------+ Best States ------------- Heat Dissipation 25 Energy Generation 10 Energy Capacity 125 Matter Stores 249 Matter Capacity 300 Sight Range 16 Robot Scan Range 10 Terrain Scan Density 10 Evasion (%) 40 Item Schematics ----------------- None Robot Schematics ------------------ None Fabricated ------------ Nothing Alien Tech Used ----------------- None Achievements -------------- None Challenges ------------ None Game ------ Seed MobileShieldPlating Manual? 0 Play Time 00:05:08 Cumulative 20.8 hours Start 2021.03.20 @ 22:57:04 End 2021.03.20 @ 23:00:39 Sessions 1 Manual Loads 0 Difficulty Rogue Special Mode None Game No. 21 Rogue 21 Adventurer 0 Explorer 0 Win Type - Total 0 Types 0/0/0/0/0/0/0/0/0 Lore% 22 Gallery% 31 Achievement% 23 Wizard Run 0 Options --------- ASCII 1 Keyboard 1 Movement Numpad Keybinds 0 Fullscreen 2 Font 18/Terminus Map View 76x50 Tactical HUD 1 Map Filters NONE Filters NONE Steam 1 RUN: 8b5f21e2-58ad-44d1-be4c-394c4726aaf5